fUSD/lending_fUSD_20240122
["ID","MTS","AMOUNT","RATE_DAILY","PERIOD"]
[312540782,1705951845556,-233.49,0.00033886,2]
[312540783,1705951845566,-155.0,0.000339,4]
[312540784,1705951845579,-506.61948755,0.00034,4]
[312540785,1705951845594,-1000.0,0.00034,4]
[312540786,1705951845603,-500.0,0.00034,2]
[312540787,1705951845612,-8019.15266711,0.00034,2]
[312540788,1705951845621,-425.79,0.00034247,2]
[312540789,1705951845631,-233.49,0.00034247,2]
[312540790,1705951845641,-885.12,0.00034352,2]
[312540791,1705951845651,-6186.14735878,0.00034657,7]
[312540792,1705951845661,-8965.15292614,0.000349,4]
[312540793,1705951845670,-1429.87413942,0.000349,2]
[312540794,1705951845679,-1429.87413926,0.000349,2]
[312540795,1705951845689,-1429.87413926,0.000349,2]
[312540796,1705951845699,-1429.87413926,0.000349,2]
[312540797,1705951845710,-1429.87413926,0.000349,2]
[312540798,1705951845724,-1429.87413926,0.000349,2]
[312540799,1705951845735,-1429.87413926,0.000349,2]
[312540800,1705951845745,-150.0,0.00034999,2]
[312540801,1705951845755,-150.0,0.00034999,2]
[312540802,1705951845764,-23510.46100162,0.00035,4]
[312540803,1705951845774,-448.45815072,0.00035,4]
[312540804,1705951845784,-185.88542608,0.00035,4]
[312540805,1705951845793,-620.26980574,0.00035,4]
[312540806,1705951845803,-1261.11642949,0.00035,4]
[312540807,1705951845812,-150.0,0.00035063,7]
[312540808,1705951845822,-1429.87413926,0.00035259,2]
[312540809,1705951845839,-204.24,0.00035633,2]
[312540810,1705951845848,-18950.19113647,0.000357,2]
[312540811,1705951845857,-164.76,0.000357,7]
[312540812,1705951845867,-227.31,0.000357,2]
[312540813,1705951845876,-3000.0,0.000358,2]
[312540814,1705951845886,-176.844255,0.000359,3]
[312540815,1705951845895,-804.0,0.00036,2]
[312540817,1705951845904,-1099.59072568,0.000362,2]
[312540819,1705951845913,-468.32072479,0.00036469,8]
[312540821,1705951845922,-255.97,0.00036613,15]
[312540822,1705951845931,-892.0,0.00036613,2]
[312540824,1705951845941,-1138.0,0.00036613,2]
[312540825,1705951845950,-1429.87413926,0.00036812,2]
[312540826,1705951845959,-310.10317544,0.00037,4]
[312540827,1705951845969,-352.54,0.00037,2]
[312540828,1705951845978,-500.0,0.00037,2]
[312540830,1705951845987,-500.0,0.00037,2]
[312540831,1705951845997,-300.0,0.00037,2]
[312540832,1705951846006,-150.0,0.00037,2]
[312540833,1705951846015,-6186.14735878,0.00037036,10]
[312540834,1705951846024,-3000.0,0.0003705,2]
[312540835,1705951846034,-156084.93174248,0.00037296,7]
[312540836,1705951846044,-491.35495518,0.00037296,2]
[312540837,1705951846053,-223.1117757,0.00037297,2]
[312540838,1705951846063,-16642.62982695,0.00037297,2]
[312540839,1705951846073,-16801.9913254,0.00037297,4]
[312540840,1705951846089,-43837.89503394,0.00037297,4]
[312540841,1705951846099,-697.25548386,0.00037298,4]
[312540842,1705951846108,-1160.16678694,0.00037298,4]
[312540843,1705951846118,-326.27481351,0.00037299,4]
[312540844,1705951846127,-294.44,0.000373,2]
[312540845,1705951846137,-4030.90348208,0.0003759,2]
[312540846,1705951846147,-2823.35,0.00037808,2]
[312540847,1705951846156,-189.32522557,0.00037859,2]
[312540848,1705951846166,-204.24,0.00037897,2]
[312540849,1705951846175,-1500.0,0.000379,13]
[312540850,1705951846185,-351959.28544782,0.000379,2]
[312540851,1705951846741,-2966.02279256,0.000379,2]
[312540852,1705951846753,-3737.50879518,0.000379,2]
[312540853,1705951846765,-27190.64136471,0.000379,2]
[312540854,1705951846776,-5425.33852606,0.000379,2]
[312540855,1705951846787,-5608.36949611,0.000379,2]
[312540856,1705951846799,-3694.54655616,0.000379,2]
[312540857,1705951846810,-977.2776959,0.000379,2]
[312540858,1705951846822,-8000.0,0.000379,2]
[312540859,1705951846839,-5754.7382424,0.000379,2]
[312540860,1705951846850,-425.17335311,0.000379,2]
[312540861,1705951846861,-352.12,0.000379,2]
[312540901,1705951847647,-187.2259011,0.0003,2]
[312540903,1705951847658,-187.2259011,0.0003,2]
[312540906,1705951847668,-187.2259011,0.0003,2]
[312540908,1705951847678,-187.2259011,0.0003,2]
[312540910,1705951847688,-187.2259011,0.0003,2]
[312540912,1705951847698,-187.2259011,0.0003,2]
[312540914,1705951847707,-187.2259011,0.0003,2]
[312540916,1705951847717,-187.2259011,0.0003,2]
[312540918,1705951847727,-187.2259011,0.0003,2]
[312540920,1705951847737,-187.2259011,0.0003,2]
[312540922,1705951847747,-187.2259011,0.0003,2]
[312540924,1705951847757,-187.2259011,0.0003,2]
[312540926,1705951847768,-187.2259011,0.0003,2]
[312540927,1705951847778,-187.2259011,0.0003,2]
[312540928,1705951847788,-5078.66145817,0.000379,2]
[312540929,1705951847806,-1600.0,0.000379,2]
[312540930,1705951847823,-2005.75375,0.000379,2]
[312540931,1705951847843,-583.75401306,0.000379,2]
[312540932,1705951847856,-35727.13002943,0.000379,2]
[312540935,1705951847882,-12900.0,0.000379,2]
[312540938,1705951847895,-418.02475556,0.000379,2]
[312540940,1705951847907,-4006.7,0.000379,2]
[312540942,1705951847920,-811.59690271,0.000379,2]
[312540946,1705951847940,-263.84999334,0.000379,2]
[312540947,1705951848025,-187.2259011,0.0003,2]
[312540948,1705951848035,-187.2259011,0.0003,2]
[312540949,1705951848045,-187.2259011,0.0003,2]
[312540951,1705951848055,-152.42322756,0.0003,2]
[312540954,1705951848096,-34.80267354,0.0003,2]
[312540955,1705951848107,-187.2259011,0.0003,2]
[312540956,1705951848116,-1850.90375737,0.000379,2]
[312540957,1705951848237,-998.04847,0.000379,2]
[312540958,1705951848249,-19303.33998688,0.000379,2]
[312540959,1705951848262,-10485.49999998,0.000379,2]
[312540960,1705952541205,169.68,0.00021019,2]
[312540961,1705952593191,182.62493134,0.00019653,2]
[312540962,1705952600983,2066.28100151,0.00020978,2]
[312540963,1705952629167,474.7803758,0.00020976,7]
[312540964,1705952635534,1895.66332367,0.00019653,2]
[312540965,1705952655526,988.69643697,0.00019653,2]
[312540967,1705952768262,2114.627127,0.00021733,2]
[312540970,1705952835114,-311.00580256,0.00021772,2]
[312540971,1705952842083,-463.52949847,0.00021772,2]
[312540972,1705953007318,172.57,0.0002494,120]
[312540973,1705953020232,169.68,0.0001991,2]
[312541086,1705953034912,-1046.96253148,0.00021772,2]
[312541087,1705953034924,-1370.24339768,0.00021772,2]
[312541088,1705953034933,-604.70660232,0.00021814,2]
[312541089,1705953034963,-395.29339768,0.00021814,2]
[312541090,1705953034973,-155.0,0.00021814,2]
[312541091,1705953034982,-473.62844747,0.00021814,2]
[312541092,1705953034992,-155.0,0.00021815,2]
[312541093,1705953035002,-161.80307959,0.00021816,2]
[312541094,1705953035012,-970.97507526,0.00021816,2]
[312541095,1705953035024,-2075.49642563,0.00021816,2]
[312541096,1705953035035,-418.44153932,0.00021816,2]
[312541097,1705953035045,-371.50432901,0.00021816,2]
[312541098,1705953035055,-295.73068383,0.00021816,2]
[312541099,1705953035066,-218.13979493,0.00021817,2]
[312541100,1705953035076,-155.0,0.00021817,2]
[312541101,1705953035087,-155.0,0.00021817,2]
[312541102,1705953035098,-1265.91696724,0.00021817,2]
[312541103,1705953035108,-191.04557841,0.00021817,2]
[312541104,1705953035119,-215.26262203,0.00021817,2]
[312541105,1705953035129,-3034.26004628,0.00021817,2]
[312541106,1705953035189,-397.098922,0.00021817,2]
[312541111,1705953035282,-980.60879457,0.00021817,2]
[312541114,1705953035294,-5290.85511245,0.00021817,2]
[312541116,1705953035307,-793.94,0.00021817,2]
[312541119,1705953035323,-1939.38683103,0.00021817,2]
[312541122,1705953035343,-351.51437473,0.00021817,2]
[312541124,1705953035354,-1984.18655,0.00021817,2]
[312541126,1705953035366,-1155.5,0.00021817,2]
[312541128,1705953035377,-3280.71834,0.00021817,2]
[312541131,1705953035393,-678.65346294,0.00021817,2]
[312541135,1705953035419,-288.51280725,0.00021817,2]
[312541137,1705953035432,-479.13133799,0.00021817,2]
[312541139,1705953035443,-534.492,0.00021817,2]
[312541141,1705953035458,-1024.83257611,0.00021817,2]
[312541142,1705953035470,-412.92107985,0.00021817,2]
[312541143,1705953035480,-3574.56032653,0.00021819,2]
[312541144,1705953035491,-477.99176359,0.00021819,2]
[312541145,1705953035503,-197.75824909,0.00021819,2]
[312541146,1705953035513,-3032.26696473,0.00021821,2]
[312541147,1705953035522,-127.32992438,0.00021823,2]
[312541177,1705953038382,-310.42145107,0.00021813,2]
[312541179,1705953038392,-213.92634849,0.00021813,2]
[312541182,1705953038404,-300.0,0.00021813,2]
[312541189,1705953038461,-547.77330237,0.00021813,2]
[312541191,1705953038470,-329.46360402,0.00021823,2]
[312541193,1705953038480,-150.0,0.00021831,2]
[312541195,1705953038489,-8357.41,0.00021831,2]
[312541197,1705953038498,-174.40549592,0.00021835,2]
[312541199,1705953038508,-2487.43,0.00021835,2]
[312541201,1705953038517,-2579.08840316,0.00021983,2]
[312541203,1705953038526,-1921.9435,0.00021984,2]
[312541205,1705953038536,-2118.56405589,0.00021989,2]
[312541207,1705953038546,-977.25633196,0.00021999,2]
[312541209,1705953038557,-880.23963044,0.00021999,2]
[312541218,1705953038631,-1346.96,0.00021999,2]
[312541220,1705953038643,-3644.41662089,0.00021999,2]
[312541222,1705953038653,-2031.5268178,0.00021999,2]
[312541224,1705953038665,-683.90531127,0.00021999,2]
[312541227,1705953038676,-2175.47846266,0.00021999,2]
[312541229,1705953038689,-645.46127399,0.00021999,2]
[312541231,1705953038702,-1588.24272214,0.00021999,2]
[312541233,1705953038715,-271.38210929,0.00021999,2]
[312541237,1705953038743,-4825.46166909,0.00021999,2]
[312541242,1705953038788,-35240.89118473,0.00021999,2]
[312541244,1705953038799,-2782.61053922,0.00022,2]
[312541246,1705953038810,-516.75299771,0.0002208,2]
[312541248,1705953038822,-327.32790039,0.00022082,2]
[312541249,1705953038835,-286.78293325,0.00022082,2]
[312541251,1705953038846,-233.29692962,0.00022082,2]
[312541253,1705953038856,-158.86466524,0.00022082,2]
[312541256,1705953038866,-164.39591223,0.00022082,2]
[312541259,1705953038875,-386.21860828,0.00022084,2]
[312541262,1705953038885,-221.15744731,0.00022197,2]
[312541265,1705953038895,-1709.96186533,0.00022197,2]
[312541268,1705953038905,-800.51930065,0.00022201,2]
[312541271,1705953038914,-370.75565312,0.00022201,2]
[312541274,1705953038924,-600.0,0.00022201,2]
[312541277,1705953038932,-161.98906066,0.00022215,2]
[312541280,1705953038942,-177.24781032,0.00022437,2]
[312541283,1705953038955,-161.90565138,0.00022437,2]
[312541286,1705953038964,-15729.1268,0.00022579,2]
[312541289,1705953038974,-259.1,0.00022679,2]
[312541294,1705953038985,-1050.80754485,0.0002268,2]
[312541297,1705953038996,-304.25313191,0.00022797,2]
[312541300,1705953039007,-155.0,0.00022797,2]
[312541303,1705953039017,-1857.38971887,0.00022797,2]
[312541306,1705953039026,-350.66007833,0.00022797,2]
[312541309,1705953039036,-755.47818953,0.00022797,2]
[312541312,1705953039047,-2633.79493284,0.00022797,2]
[312541315,1705953039056,-310.50049061,0.00022797,2]
[312541318,1705953039066,-538.58822261,0.00022797,2]
[312541321,1705953039076,-155.98532929,0.00022797,2]
[312541324,1705953039086,-263.27381778,0.00022797,2]
[312541325,1705953039097,-250.02290447,0.00022797,2]
[312541328,1705953039108,-240.33558274,0.00022797,2]
[312541333,1705953039118,-1124.63119894,0.00022797,2]
[312541335,1705953039128,-155.0,0.00022797,2]
[312541339,1705953039138,-8923.613,0.000228,2]
[312541341,1705953039147,-500.0,0.000228,2]
[312541345,1705953039157,-1000.0,0.000228,2]
[312541348,1705953039167,-180.67,0.00023466,2]
[312541351,1705953039176,-210.0,0.00024014,2]
[312541354,1705953039185,-250.0,0.00024658,2]
[312541357,1705953039194,-454.97,0.00024726,2]
[312541359,1705953039206,-539.45,0.00024764,2]
[312541361,1705953039215,-7836.05,0.00024866,2]
[312541363,1705953039224,-163.95,0.00024879,2]
[312541365,1705953039234,-250.0,0.00024939,2]
[312541367,1705953039244,-173.9,0.00025062,2]
[312541369,1705953039253,-362.48,0.00025141,2]
[312541370,1705953039263,-172.86,0.00025246,10]
[312541372,1705953039273,-156.78,0.00025281,2]
[312541374,1705953039282,-163.16,0.00025356,2]
[312541376,1705953039292,-177.96,0.00025377,2]
[312541378,1705953039303,-971.01,0.00025462,2]
[312541380,1705953039312,-275.35,0.00025471,2]
[312541383,1705953039323,-163.16,0.00025521,2]
[312541385,1705953039334,-163.16,0.00025686,2]
[312541387,1705953039343,-180.67,0.0002573,2]
[312541388,1705953039353,-17692.69,0.00025803,2]
[312541390,1705953039362,-163.16,0.00025851,2]
[312541393,1705953039375,-2553.72,0.00025949,2]
[312541395,1705953039385,-163.16,0.00026016,2]
[312541397,1705953039394,-2000.0,0.00026063,2]
[312541399,1705953039404,-163.16,0.00026182,2]
[312541401,1705953039414,-163.16,0.00026347,2]
[312541403,1705953039423,-971.01,0.00026404,2]
[312541405,1705953039433,-163.16,0.00026512,2]
[312541407,1705953039442,-250.0,0.00026622,2]
[312541409,1705953039454,-163.16,0.00026677,2]
[312541411,1705953039464,-177.96,0.00027021,2]
[312541413,1705953039473,-971.01,0.00027346,2]
[312541415,1705953039483,-174.1,0.00027397,2]
[312541417,1705953039493,-162.77,0.00027397,2]
[312541420,1705953039502,-159.65,0.00027397,2]
[312541422,1705953039511,-161.98906066,0.0002741,2]
[312541424,1705953039521,-427.75,0.00027461,2]
[312541426,1705953039530,-162.77,0.00027682,2]
[312541428,1705953039539,-174.1,0.00027758,2]
[312541430,1705953039548,-539.45,0.0002786,2]
[312541432,1705953039557,-162.77,0.00027967,2]
[312541434,1705953039567,-180.67,0.00027994,2]
[312541436,1705953039576,-174.1,0.00028118,2]
[312541438,1705953039586,-162.77,0.00028252,2]
[312541440,1705953039596,-971.01,0.00028289,2]
[312541442,1705953039606,-12259.0886,0.00028437,2]
[312541444,1705953039615,-174.1,0.00028479,2]
[312541446,1705953039625,-162.77,0.00028537,2]
[312541448,1705953039634,-159.65,0.00028539,2]
[312541450,1705953039643,-177.96,0.00028665,2]
[312541452,1705953039653,-2326.0,0.000287,2]
[312541454,1705953039667,-162.77,0.00028822,2]
[312541456,1705953039677,-174.1,0.00028839,2]
[312541458,1705953039686,-152.0668236,0.0002888,2]
[312541460,1705953039695,-205.0,0.00029,2]
[312541463,1705953039709,-174.1,0.000292,2]
[312541465,1705953039720,-971.01,0.00029231,2]
[312541467,1705953039729,-174.1,0.0002956,2]
[312541468,1705953039739,-588.14904867,0.00029663,2]
[312541471,1705953039749,-159.65,0.0002968,2]
[312541473,1705953039761,-700.0,0.000298,10]
[312541475,1705953039772,-55023.6881,0.000299,2]
[312541477,1705953039782,-170.39270302,0.000299,2]
[312541479,1705953039792,-1400.0,0.000299,10]
[312541481,1705953039805,-826.65231555,0.000299,4]
[312541483,1705953039816,-174.1,0.00029921,2]
[312541485,1705953039825,-379.62307714,0.0002999,2]
[312541487,1705953039836,-1807.84533026,0.0003,4]
[312541489,1705953039846,-77780.0552326,0.0003,2]
[312541491,1705953039859,-29226.05274577,0.0003,2]
[312541493,1705953039869,-94813.46209856,0.0003,2]
[312541496,1705953039880,-126091.4318163,0.0003,2]
[312541498,1705953039896,-219601.40612383,0.0003,2]
[312541501,1705953039908,-132442.76715773,0.0003,2]
[312541503,1705953039917,-155.0,0.0003,2]
[312541505,1705953039928,-144039.09254167,0.0003,4]
[312541507,1705953039940,-9180.93961907,0.0003,4]
[312541510,1705953039964,-4758.37121133,0.0003,4]
[312541513,1705953039976,-3780.6402661,0.0003,4]
[312541611,1705953040913,-143645.92693187,0.0003,4]
[312541616,1705953040943,-370.90708428,0.0003,4]
[312541619,1705953040972,-508.58444147,0.0003,4]
[312541622,1705953040992,-2850.71987549,0.0003,4]
[312541625,1705953041005,-244.68807085,0.0003,2]
[312541627,1705953041020,-1487.69608,0.0003,2]
[312541632,1705953041056,-1590.07300535,0.0003,2]
[312541634,1705953041068,-475.04750883,0.00030081,2]
[312541637,1705953041083,-7417.05827244,0.00030081,2]
[312541639,1705953041107,-153.84,0.00030137,2]
[312541640,1705953041124,-154.15370036,0.00030181,2]
[312541641,1705953041140,-180.67,0.00030258,2]
[312541642,1705953041153,-174.1,0.00030281,2]
[312541643,1705953041168,-177.96,0.00030309,2]
[312541644,1705953041183,-358.00273995,0.0003032,2]
[312541645,1705953041196,-174.1,0.00030642,2]
[312541646,1705953041215,-159.65,0.00030822,2]
[312541647,1705953041228,-539.45,0.00030955,2]
[312541648,1705953041241,-174.1,0.00031002,2]
[312541649,1705953041255,-174.1,0.00031363,2]
[312541650,1705953041268,-180.0,0.00031644,2]
[312541651,1705953041282,-174.1,0.00031723,2]
[312541652,1705953041296,-177.96,0.00031953,2]
[312541653,1705953041308,-159.65,0.00031964,2]
[312541654,1705953041321,-174.1,0.00032084,2]
[312541655,1705953041333,-170.392703,0.00032152,2]
[312541656,1705953041345,-7892.10578127,0.00032343,4]
[312541657,1705953041357,-174.1,0.00032444,2]
[312541658,1705953041370,-180.67,0.00032522,2]
[312541659,1705953041382,-161.98906066,0.00032605,2]
[312541660,1705953041394,-174.1,0.00032805,2]
[312541661,1705953041406,-213.3,0.00032877,15]
[312541662,1705953041417,-159.65,0.00033105,2]
[312541663,1705953041429,-174.1,0.00033165,2]
[312541664,1705953041440,-826.65231554,0.00033471,6]
[312541665,1705953041454,-174.1,0.00033526,2]
[312541666,1705953041470,-177.96,0.00033596,2]
[312541667,1705953041483,-174.1,0.00033886,2]
[312541668,1705953041495,-500.0,0.00034,2]
[312541669,1705953041507,-506.61948755,0.00034,4]
[312541670,1705953041518,-1000.0,0.00034,4]
[312541671,1705953041530,-539.45,0.00034051,2]
[312541672,1705953041542,-205.0,0.00034167,11]
[312541673,1705953041553,-174.1,0.00034247,2]
[312541674,1705953041564,-159.65,0.00034247,2]
[312541675,1705953041576,-170.392703,0.00034404,2]
[312541676,1705953041589,-7892.10578127,0.00034606,7]
[312541677,1705953041600,-180.67,0.00034786,2]
[312541678,1705953041612,-2120.69745501,0.000349,3]
[312541679,1705953041627,-280.29205585,0.000349,3]
[312541681,1705953045863,-273.89996103,0.000349,3]
[312541682,1705953045877,-601.40966312,0.000349,3]
[312541684,1705953045891,-323.02359802,0.000349,3]
[312541686,1705953045909,-1232.20000003,0.000349,3]
[312541688,1705953045922,-168.47726694,0.000349,3]
[312541690,1705953045934,-786.43077665,0.000349,2]
[312541691,1705953045945,-786.43077659,0.000349,2]
[312541692,1705953045959,-786.43077659,0.000349,2]
[312541694,1705953045970,-786.43077659,0.000349,2]
[312541695,1705953045981,-786.43077659,0.00034953,2]
[312541697,1705953045992,-460.63404224,0.00034999,4]
[312541698,1705953046003,-1261.11642949,0.00035,4]
[312541700,1705953046014,-620.26980574,0.00035,4]
[312541701,1705953046026,-23510.46100162,0.00035,4]
[312541703,1705953046037,-448.45815072,0.00035,4]
[312541704,1705953046048,-275.35,0.00035659,2]
[312541706,1705953046060,-3145.3188,0.00036,7]
[312541708,1705953046071,-150.0,0.00036,7]
[312541709,1705953046082,-152.0,0.00036122,2]
[312541711,1705953046093,-786.43077659,0.00036216,2]
[312541713,1705953046104,-1181.39402857,0.00036301,30]
[312541715,1705953046115,-3490.12734707,0.00036613,14]
[312541718,1705953046128,-383.23988064,0.00036613,14]
[312541721,1705953046142,-57.63827133,0.00036613,14]
[312541724,1705953046152,-213.3,0.00036613,15]
[312541727,1705953046164,-170.392703,0.00036656,2]
[312541732,1705953046174,-7892.10578127,0.00036868,9]
[312541734,1705953046185,-309.60980396,0.00037,4]
[312541737,1705953046195,-3310.09672044,0.00037,5]
[312541742,1705953046215,-4689.90327956,0.00037,5]
[312541744,1705953046226,-826.65231554,0.00037043,8]
[312541746,1705953046237,-180.67,0.0003705,2]
[312541748,1705953046247,-539.45,0.00037146,2]
[312541750,1705953046258,-318.31330327,0.00037291,2]
[312541753,1705953046269,-1254.8177837,0.00037291,4]
[312541756,1705953046281,-204.29770103,0.00037291,4]
[312541759,1705953046292,-3850.8956169,0.00037293,4]
[312541785,1705953046464,-500.73544711,0.00037293,4]
[312541786,1705953046475,-155.0,0.00037293,4]
[312541787,1705953046487,-241.11245312,0.00037295,4]
[312541788,1705953046498,-150.0,0.000374,2]
[312541790,1705953046507,-786.43077659,0.00037479,2]
[312541792,1705953046517,-762.13920058,0.00037516,3]
[312541794,1705953046527,-2026.8001066,0.0003752,2]
[312541796,1705953046538,-973.1998934,0.0003752,2]
[312541798,1705953046548,-7136.78352763,0.0003753,2]
[312541800,1705953046558,-1865.164,0.00037796,2]
[312541801,1705953046567,-2376.34881602,0.00037796,2]
[312541802,1705953046579,-2909.55635371,0.00037796,2]
[312541803,1705953046590,-3950.0,0.00037796,2]
[312541804,1705953046602,-73389.42993027,0.00037796,2]
[312541805,1705953046612,-1996.0,0.00037796,2]
[312541806,1705953046622,-1000.0,0.00037796,2]
[312541807,1705953046631,-161.98906066,0.000378,2]
[312541809,1705953046641,-184.67294888,0.000378,2]
[312541811,1705953046650,-198.64328382,0.000378,2]
[312541812,1705953046661,-5131.1467751,0.000378,30]
[312541813,1705953046670,-182.9562349,0.00037808,2]
[312541814,1705953046680,-154.15370033,0.00037816,2]
[312541815,1705953046690,-379.62307714,0.0003789,2]
[312541816,1705953046699,-2020.53490244,0.00037895,4]
[312541817,1705953046713,-1046.49412238,0.00037895,2]
[312541836,1705953047202,-251.05985931,0.00037897,4]
[312541837,1705953047238,-7667.4397648,0.00037897,4]
[312541838,1705953047260,-12141.5912186,0.00037897,4]
[312541839,1705953047276,-463.9958283,0.00037897,4]
[312541840,1705953047286,-155.49952712,0.00037897,2]
[312541841,1705953047296,-2284.75461907,0.00037897,4]
[312541842,1705953047306,-672.64725996,0.00037897,4]
[312541843,1705953047318,-332.28537817,0.00037897,4]
[312541846,1705953047342,-266.11656047,0.00037897,4]
[312541847,1705953047351,-56.75965235,0.00037898,2]
[312541850,1705953047362,-443.052,0.00037898,2]
[312541852,1705953047375,-367.68855152,0.00037898,2]
[312541853,1705953047384,-1019.94027241,0.00037898,20]
[312541855,1705953047394,-488.29420649,0.00037898,4]
[312541857,1705953047405,-155.0,0.00037898,2]
[312541858,1705953047415,-473.47293216,0.00037899,4]
[312541859,1705953047426,-13387.32403742,0.000379,7]
[312541860,1705953047515,-28258.350241,0.000379,7]
[312541861,1705953047524,-839.232211,0.000379,2]
[312541862,1705953047534,-155.0,0.000379,4]
[312541863,1705953047543,-309.79714423,0.000379,14]
[312541864,1705953047552,-229.76329315,0.000379,90]
[312541865,1705953047562,-13314.43671416,0.000379,2]
[312541866,1705953047570,-2100.0,0.000379,13]
[312541867,1705953047580,-223.13408688,0.000379,2]
[312541868,1705953047589,-7207.21698335,0.000379,2]
[312541869,1705953047601,-1829.21307022,0.000379,2]
[312541870,1705953047620,-1171.27278987,0.000379,2]
[312541871,1705953047632,-12848.59701894,0.000379,2]
[312541872,1705953047644,-694.06308552,0.000379,2]
[312541873,1705953047676,-1122.18281956,0.000379,2]
[312541874,1705953047688,-4190.10000001,0.000379,2]
[312541875,1705953047700,-768.29957001,0.000379,2]
[312541876,1705953047717,-12577.21703376,0.000379,2]
[312541877,1705953047728,-512.96451863,0.000379,2]
[312541878,1705953047741,-2306.4357664,0.000379,2]
[312541879,1705953047779,-1870.52185332,0.000379,2]
[312541880,1705953047815,-1332.12995157,0.000379,2]
[312541881,1705953047850,-416.62993815,0.000379,2]
[312541882,1705953047882,-1161.3,0.000379,2]
[312541883,1705953047893,-11911.14240001,0.000379,2]
[312541884,1705953047918,-79307.99999999,0.000379,2]
[312541885,1705953047929,-4183.6506,0.000379,2]
[312541886,1705953047941,-3960.0,0.000379,2]
[312541887,1705953047965,-19399.0,0.000379,2]
[312541888,1705953047977,-20094.87682815,0.000379,2]
[312541889,1705953047990,-3585.78258159,0.000379,2]
[312541890,1705953048002,-1288.3233444,0.000379,2]
[312541891,1705953048014,-4127.42902183,0.000379,2]
[312541892,1705953048026,-29041.69306569,0.000379,2]
[312541893,1705953048039,-21844.58657581,0.000379,2]
[312541894,1705953048055,-60881.42715962,0.000379,2]
[312541895,1705953048067,-346375.2968236,0.000379,2]
[312541896,1705953048077,-187.18634131,0.00037908,2]
[312541897,1705953048087,-254.37059046,0.00038008,10]
[312541898,1705953048096,-319.0,0.00038234,2]
[312541899,1705953048105,-150.17,0.00038356,2]
[312541900,1705953048115,-4425.51274453,0.000385,7]
[312541901,1705953048124,-427.75,0.00038693,2]
[312541902,1705953048134,-786.43077659,0.00038742,2]
[312541903,1705953048144,-352.91402153,0.00038764,30]
[312541904,1705953048154,-1178.75291666,0.00038765,2]
[312541905,1705953048163,-26622.50214766,0.000388,4]
[312541906,1705953048174,-883.30455524,0.0003888,2]
[312541907,1705953048183,-883.30455516,0.0003888,2]
[312541908,1705953048193,-883.30455516,0.0003888,2]
[312541909,1705953048203,-883.30455516,0.0003888,2]
[312541910,1705953048217,-883.30455516,0.0003888,2]
[312541911,1705953048228,-2800.0,0.000389,14]
[312541912,1705953048238,-170.392703,0.00038908,2]
[312541913,1705953048248,-150.0,0.00038917,4]
[312541914,1705953048258,-327.58634862,0.00038937,2]
[312541915,1705953048268,-1812.15097522,0.00038945,4]
[312541916,1705953048278,-1416.70167439,0.00038945,2]
[312541917,1705953048288,-174.94679052,0.00038945,4]
[312541918,1705953048298,-162.34847253,0.00038945,4]
[312541919,1705953048307,-376.60123401,0.00038945,4]
[312541920,1705953048317,-155.21024572,0.00038945,4]
[312541921,1705953048327,-19026.01005334,0.00038945,4]
[312541922,1705953048336,-183.91154665,0.00038945,4]
[312541923,1705953048346,-155.39075037,0.00038945,4]
[312541924,1705953048356,-2560.36887213,0.00038946,4]
[312541925,1705953048365,-281.9628098,0.0003898,2]
[312541926,1705953048375,-379.62307714,0.00039,2]
[312541927,1705953048385,-197.08775884,0.00039,4]
[312541928,1705953048394,-1428.56752818,0.00039,2]
[312541929,1705953048403,-976.1034455,0.00039,4]
[312541930,1705953048413,-18334.56275799,0.00039,2]
[312541931,1705953048423,-235269.75413994,0.00039,2]